Cogmind - Beta 16.1 @@@ ROGUE MODE // 2026.01.28 @ 16:51:07 Player: BlobtheGreat Result: Destroyed by as-19531 with Assembled Heavy Rifle Performance ------------- Evolutions (0) 0 Regions Visited (4) 800 Robots Destroyed (37) 185 Value Destroyed (685) 685 Prototype IDs (0) 0 Alien Tech Used (0) 0 Bonus (60) 60 TOTAL SCORE: 1730 Bonus ------- Follower Combat Kills 60 Cogmind --------- Core Integrity 0/250 Matter 221/300 Energy 16/100 System Corruption 0% Temperature Cool (0) Movement Core (50) Location -9/Mines Parts ------- > --- POWER (1) -------- (None) > --- PROPULSION (2) --- (None) > --- UTILITY (2) ------ (None) > --- WEAPON (2) ------- (None) > --- INVENTORY (5) ---- Light Fission Core Light Treads Huge Storage Unit Particle Gun Botcube Peak State ------------ > --- POWER ------------ Light Nuclear Core > --- PROPULSION ------- Aluminum Leg Aluminum Leg > --- UTILITY ---------- Large Storage Unit Medium Armor Plating > --- WEAPON ----------- Assault Rifle Light Assault Rifle > --- INVENTORY -------- Light Ion Engine Fission Core Light Fission Core Light Treads Aluminum Leg Huge Storage Unit Seismic Detector Particle Gun Mini Grenade Launcher Mini Grenade Launcher Maul Botcube [Rating: 13] Favorites ----------- Power Ion Engine Engine Ion Engine Power Core Light Nuclear Core Propulsion Light Treads Treads Light Treads Leg Aluminum Leg Utility Medium Armor Plating Device Seismic Detector Storage Large Storage Unit Protection Medium Armor Plating Weapon Light Assault Rifle Energy Gun Medium Laser Ballistic Gun Light Assault Rifle Launcher Mini Grenade Launcher Impact Weapon Maul Build | -11 -10 -10 -10 -9 ------- Run | Yrd Mat Min Exi Min Slots Evolved . | . . . . . Power . | . . . . . Propulsion . | . . . . . Utility . | . . . . . Weapon . | . . . . . Parts Attached 23 | 7 8 4 . 4 Power 5 | 1 1 2 . 1 Engine 3 | 1 1 . . 1 Core 2 | . . 2 . . Reactor . | . . . . . Propulsion 5 | 2 . 2 . 1 Treads 2 | 2 . . . . Leg 3 | . . 2 . 1 Wheel . | . . . . . Hover . | . . . . . Flight . | . . . . . Utility 6 | 2 3 . . 1 Device 2 | 1 . . . 1 Storage 2 | 1 1 . . . Processor . | . . . . . Hackware . | . . . . . Protection 2 | . 2 . . . Artifact . | . . . . . Weapon 7 | 2 4 . . 1 Energy Gun 1 | 1 . . . . Energy Cannon . | . . . . . Ballistic Gun 3 | 1 2 . . . Ballistic Cannon . | . . . . . Launcher 2 | . 2 . . . Special Weapon . | . . . . . Impact Weapon 1 | . . . . 1 Slashing Weapon . | . . . . . Piercing Weapon . | . . . . . Special Melee Weapon . | . . . . . Unidentified Prototypes . | . . . . . Parts Lost 8 | . 2 1 . 5 Power 2 | . . 1 . 1 Propulsion 2 | . 1 . . 1 Utility 2 | . 1 . . 1 Weapon 2 | . . . . 2 Highest Loss Streak 4 | . 1 1 . 4 To Critical Strikes . | . . . . . Average Backups 7 | 3 6 7 11 9 Power 1 | . . 1 3 3 Propulsion . | 1 . . 2 1 Utility 2 | . 2 2 2 2 Weapon 3 | . 3 3 4 3 Tool/Special . | . . . . . Unused Backups 11 | . 5 . . 6 Power 3 | . . . . 3 Propulsion 2 | . 2 . . . Utility 2 | . . . . 2 Weapon 4 | . 3 . . 1 Tool/Special . | . . . . . Average Slot Usage (%) 89 | . 89 88 100 79 Engine 8 | . 13 2 . 10 Core 5 | . . 10 14 1 Treads 13 | . 18 10 . . Leg 6 | . . 7 28 27 Device 2 | . 3 . . 7 Storage 14 | . 14 14 14 14 Protection 11 | . 10 14 14 1 Energy Gun 2 | . 5 . . . Ballistic Gun 23 | . 22 28 28 3 Peak Build Rating 13 | 8 10 12 13 13 Average Rating 9 | 7 8 10 12 9 On Entrance 8 | . 8 8 12 13 Avg Prop Armor Cover (%) . | . . . . . Naked Turns 2 | . . . . 2 Heaviest Build 35 | 12 35 35 35 29 Greatest Support 40 | 40 40 20 20 20 Greatest Overweight (x) 4 | . 4 2 1 1 Average Overweight (x) . | . . 1 1 . Largest Inventory Capacity 15 | 8 15 15 15 15 Average Capacity 13 | 7 12 15 15 14 Most Carried 13 | 6 8 10 13 13 Average Carried 8 | 4 7 8 12 10 Final Capacity 15 | 8 15 15 15 5 Final Carried 13 | 6 7 10 13 5 Class Distribution -------------------- 100% | Mutant Dominant Class ---------------- Mutant | -10/Materials Mutant | -10/Mines Mutant | -10/Exiles Mutant | -9/Mines Resources | -11 -10 -10 -10 -9 ----------- Run | Yrd Mat Min Exi Min Matter Collected 747 | 293 292 113 . 49 Remotely . | . . . . . Salvage Created 924 | 192 507 109 . 116 Parts 64 | 16 36 6 . 6 Haulers Intercepted 2 | . 2 . . . Recyclers Shooed 3 | 1 . 2 . . Parts Field Recycled . | . . . . . Retrieved Matter . | . . . . . Parts Self-Destructed . | . . . . . Prevented . | . . . . . Parts Restored . | . . . . . Kills | -11 -10 -10 -10 -9 ------- Run | Yrd Mat Min Exi Min Combat Hostiles Destroyed 23 | . 16 2 . 5 Guns 12 | . 10 2 . . AOE 11 | . 6 . . 5 Classes Destroyed 10 | 2 5 . . 3 Worker 1 | . . . . 1 Builder 4 | . 4 . . . Tunneler 7 | 6 . 1 . . Hauler 2 | . 2 . . . Recycler 2 | 1 . . . 1 Watcher 1 | . 1 . . . Swarmer 9 | . 9 . . . Grunt 10 | . 7 2 . 1 Duelist 1 | . . . . 1 Assembled 3 | . . . . 3 Best Kill Streak 6 | 4 6 2 . 4 Combat Bots Only 5 | . 5 2 . 3 Max Kills in Single Turn 5 | 1 5 1 . 2 Gunslinging . | . . . . . Exploded 2 | . 2 . . 2 Melee . | . . . . . Uniques/NPCs Destroyed . | . . . . . Combat | -11 -10 -10 -10 -9 -------- Run | Yrd Mat Min Exi Min Hostile Shots Fired 112 | . 64 15 . 33 Missed 34 | . 18 3 . 13 Hits 78 | . 46 12 . 20 Melee 9 | . . . . 9 Projectile 69 | . 46 12 . 11 AOE 3 | . . . . 3 Critical Strikes 3 | . 1 . . 2 Damage Taken 1445 | . 622 157 . 666 Core 254 | . 37 26 . 191 Absorbed by Shields 36 | . . . . 36 Core Remaining (%) 100 | 100 . . . . Volleys Fired 106 | 23 55 17 . 11 Largest 2 | 2 2 2 . 2 Hottest 70 | 70 70 40 . 40 Shots Fired 197 | 46 103 34 . 14 Gun 185 | 46 98 34 . 7 Cannon . | . . . . . Launcher 12 | . 5 . . 7 Special . | . . . . . Kinetic 124 | 23 60 34 . 7 Thermal 61 | 23 38 . . . Explosive 12 | . 5 . . 7 Electromagnetic . | . . . . . Robot Hit Streak 10 | 10 9 7 . 10 Robot Miss Streak 4 | 2 4 3 . 1 Penetration Max . | . . . . . Secondary Targets 2 | . 2 . . . Max Gunslinging Chain 1 | . 1 . . . Shots Hit Robots 131 | 30 66 24 . 11 Core Hits 68 | 9 36 8 . 15 Critical Kills . | . . . . . Critical Parts Destroyed 1 | . . 1 . . Critical Strikes 4 | 2 1 1 . . Burn 3 | 2 1 . . . Destroy 1 | . . 1 . . Melee Attacks 1 | . . . . 1 Impact 1 | . . . . 1 Slashing . | . . . . . Piercing . | . . . . . Sneak Attacks 1 | . . . . 1 Combat Hostiles . | . . . . . Follow-up Attacks . | . . . . . Damage Inflicted 2599 | 319 1384 267 . 629 Guns 1367 | 319 723 267 . 58 Cannons . | . . . . . Explosions 1164 | . 658 . . 506 Melee 65 | . . . . 65 Ramming 3 | . 3 . . . Kinetic 778 | 106 347 267 . 58 Thermal 698 | 213 485 . . . Explosive 1055 | . 549 . . 506 Electromagnetic . | . . . . . Impact 65 | . . . . 65 Slashing . | . . . . . Piercing . | . . . . . Highest Corruption . | . . . . . Average Corruption . | . . . . . Corruption Purged . | . . . . . Corruption Blocked . | . . . . . Overload Shots . | . . . . . Overflow Damage 55 | . 40 . . 15 Projectiles . | . . . . . Explosions 55 | . 40 . . 15 Melee . | . . . . . Knockbacks . | . . . . . Impact . | . . . . . Kinetic . | . . . . . Secondary . | . . . . . Self-Inflicted Damage 326 | . 144 . . 182 Shots 7 | . 3 . . 4 Rammed 4 | . 4 . . . Targets Rammed 5 | . 5 . . . Kicked . | . . . . . Crushed 1 | . 1 . . . Highest Temperature 286 | 220 286 51 . 17 Average Temperature 77 | 79 92 20 . 7 Received Heat Transfer 282 | . 168 90 . 24 Effects 2 | . 2 . . . Energy Bleed 2 | . 2 . . . Siege Activations . | . . . . . Martial Activations . | . . . . . Shielding Activations . | . . . . . Robots Disrupted . | . . . . . Combat Hostiles . | . . . . . Robots Corrupted . | . . . . . Combat Hostiles . | . . . . . Parts Fried . | . . . . . Impact Corruptions . | . . . . . Robots Melted . | . . . . . Combat Hostiles . | . . . . . Parts Melted 5 | 1 4 . . . Heat Transferred 1974 | 777 1197 . . . Parts Sabotaged . | . . . . . Parts Stolen . | . . . . . Parts Stripped . | . . . . . Power Chain Reactions . | . . . . . Alert | -11 -10 -10 -10 -9 ------- Run | Yrd Mat Min Exi Min Maximum Alert Level 1 | . 1 . . . Low Security (%) 97 | 100 94 100 . 100 Level 1 2 | . 5 . . . Level 2 . | . . . . . Level 3 . | . . . . . Level 4 . | . . . . . Level 5 . | . . . . . High Security . | . . . . . Max Security . | . . . . . Peak Influence 224 | 10 224 60 . 82 Initial 24 | . . 24 . . Average 56 | 1 110 5 . 45 Influence Increases 871 | 35 580 140 . 116 Destroy 0b10 Robot/C 440 | . 320 80 . 40 Destroy 0b10 Robot/NC 85 | 35 35 5 . 10 Destroy Leader 106 | . 76 20 . 10 Allied During Kill 5 | . . 5 . . Successful Hack 14 | . 14 . . . Disable Machine 120 | . 75 15 . 30 Destroy Structure 86 | . 60 . . 26 Lose Combat Pursuer 15 | . . 15 . . Influence Decreases 870 | 35 516 204 . 115 Entered New Map 40 | . . 40 . . Time Decay 750 | 35 496 139 . 80 Lost Part 30 | . 20 10 . . Lost Ally 50 | . . 15 . 35 Squads Dispatched 3 | . 3 . . . Investigation 1 | . 1 . . . Extermination . | . . . . . Reinforcement 2 | . 2 . . . Assault . | . . . . . Garrison . | . . . . . Intercept . | . . . . . Searches Triggered . | . . . . . Construction Impeded . | . . . . . Haulers Reinforced . | . . . . . Active Scanning Responses . | . . . . . Cargo Convoy Interrupts . | . . . . . Stealth | -11 -10 -10 -10 -9 --------- Run | Yrd Mat Min Exi Min Distress Signals 3 | . 3 . . . Communications Jammed . | . . . . . Distress Signals . | . . . . . Times Spotted 62 | . 35 4 . 23 Peak Tracking Total 18 | . 6 2 . 18 Tactical Retreats 1 | . . 1 . . Traps | -11 -10 -10 -10 -9 ------- Run | Yrd Mat Min Exi Min Traps Triggered 4 | . 4 . . . Indirectly . | . . . . . Trap Hack Attempts . | . . . . . Triggered . | . . . . . Disarmed . | . . . . . Reprogrammed . | . . . . . Reused . | . . . . . Traps Extracted . | . . . . . Installed . | . . . . . Triggered . | . . . . . Machines | -11 -10 -10 -10 -9 ---------- Run | Yrd Mat Min Exi Min Machines Disabled 8 | . 5 1 . 2 Max in Single Turn 2 | . 2 . . 2 Machines Repaired . | . . . . . Machines Dismantled . | . . . . . Machines Sabotaged . | . . . . . Overloaded Fab Kills . | . . . . . Hacking | -11 -10 -10 -10 -9 --------- Run | Yrd Mat Min Exi Min Machines Accessed 8 | . 7 . 1 . Terminals 5 | . 5 . . . Fabricators . | . . . . . Repair Stations 1 | . 1 . . . Recycling Units 1 | . 1 . . . Scanalyzers . | . . . . . Garrison Access . | . . . . . Total Hacks 27 | . 26 . 1 . Successful 11 | . 10 . 1 . Failed 16 | . 16 . . . Catastrophic 1 | . 1 . . . Database Lockouts . | . . . . . Manual 17 | . 17 . . . Terminals 20 | . 20 . . . Fabricators . | . . . . . Repair Stations 3 | . 3 . . . Recycling Units 3 | . 3 . . . Scanalyzers . | . . . . . Garrison Access . | . . . . . Terminal Hacks 3 | . 2 . 1 . Record 1 | . . . 1 . Robot Analysis 1 | . 1 . . . Branch Access Points 1 | . 1 . . . Fabricator Hacks . | . . . . . Repair Station Hacks 1 | . 1 . . . Scan Component 1 | . 1 . . . Recycling Unit Hacks 1 | . 1 . . . Retrieve Components 1 | . 1 . . . Scanalyzer . | . . . . . Garrison Access Hacks . | . . . . . Unauthorized Hacks 6 | . 6 . . . Terminals 6 | . 6 . . . Botnet 1 | . 1 . . . Skim 5 | . 5 . . . Fabricators . | . . . . . Repair Stations . | . . . . . Recycling Units . | . . . . . Scanalyzers . | . . . . . Garrison Access . | . . . . . Data Cores Recovered . | . . . . . Used . | . . . . . Hacking Detections 6 | . 6 . . . Full Trace Events . | . . . . . Feedback Events . | . . . . . Feedback Blocked . | . . . . . Robot Schematics Acquired . | . . . . . Robots Built . | . . . . . Authchips . | . . . . . Time . | . . . . . Total Robot Build Rating . | . . . . . Part Schematics Acquired . | . . . . . Parts Built . | . . . . . Authchips . | . . . . . Time . | . . . . . Total Part Build Rating . | . . . . . Part Studies Acquired . | . . . . . Parts Repaired . | . . . . . Time . | . . . . . Parts Recycled . | . . . . . Recycled Matter . | . . . . . Retrieved Matter . | . . . . . Retrieved Components 9 | . 9 . . . Parts Scanalyzed . | . . . . . Part Schematics Acquired . | . . . . . Parts Damaged . | . . . . . Bothacking | -11 -10 -10 -10 -9 ------------ Run | Yrd Mat Min Exi Min Used RIF Installer . | . . . . . Robots Hacked . | . . . . . Non-combat . | . . . . . Combat . | . . . . . Robot Hacks Applied . | . . . . . Relay Couplers Released . | . . . . . Fabnet Peak Effective % . | . . . . . Robots Rewired . | . . . . . Allies Hacked . | . . . . . Hacks Repelled . | . . . . . Allies | -11 -10 -10 -10 -9 -------- Run | Yrd Mat Min Exi Min Total Allies 5 | . . 3 . 2 Largest Group 3 | . . 3 . 2 Highest-Rated Group 42 | . . 40 . 42 Highest-Rated Ally 31 | . . 16 . 31 Total Orders . | . . . . . Ally Attacks 18 | . . 14 . 4 Total Damage 255 | . . 172 . 83 Kills 5 | . . 2 . 3 Allies Corrupted . | . . . . . Allies Melted . | . . . . . Intel | -11 -10 -10 -10 -9 ------- Run | Yrd Mat Min Exi Min Active Infowar (turns) 548 | 124 424 . . . Seismic 548 | 124 424 . . . Robot Analysis Total 1 | . 1 . . . Derelict Logs Recovered 2 | . . 2 . . Drone Launches . | . . . . . Drone Recoveries . | . . . . . Exploration | -11 -10 -10 -10 -9 ------------- Run | Yrd Mat Min Exi Min Turns Passed 3715 | 254 1642 1397 250 172 Spaces Moved 1572 | 76 701 591 131 73 Core 9 | 4 1 . . 4 Treads 1172 | 72 700 400 . . Legs 391 | . . 191 131 69 Wheels . | . . . . . Hover . | . . . . . Flight . | . . . . . Fastest Speed 50 | 50 160 190 190 50 Average Speed 207 | 154 205 224 190 182 Slowest Speed 260 | 160 250 260 190 190 Overloaded Moves . | . . . . . Propulsion Burnouts . | . . . . . Robots Hopped . | . . . . . Potential Cave-ins . | . . . . . Cave-ins Triggered . | . . . . . Exploration Rate (%) 52 | 4 96 98 48 18 Regions Visited 4 Branch Regions 3 Pre-discovered Areas 3 | . . 2 1 . Known Exits Taken 1 | . 1 . . . Unknown Exits Taken 3 | 1 . 1 1 . Scrap Searched 2 | . . 1 . 1 Spaces Dug 7 | . 7 . . . Terrain Destroyed 92 | . 61 . . 31 Melee . | . . . . . Projectile . | . . . . . AOE 92 | . 61 . . 31 Terrain Rammed . | . . . . . Walls Destroyed . | . . . . . Machines Disabled . | . . . . . Actions | -11 -10 -10 -10 -9 --------- Run | Yrd Mat Min Exi Min Total 1831 | 168 802 632 133 96 Wait 83 | 58 6 16 . 3 Move 1568 | 75 700 590 130 73 Hop . | . . . . . Pick Up 19 | 5 9 2 3 . Fast Attach 20 | 7 7 4 . 2 Attach 6 | . 1 . . 5 Detach 3 | . . 2 . 1 Swap 8 | . 8 . . . Drop 12 | . 11 1 . . Fire 106 | 23 55 17 . 11 Melee 1 | . . . . 1 Ram . | . . . . . Kick . | . . . . . Crush 5 | . 5 . . . Escape Stasis . | . . . . . Rewire . | . . . . . Trap . | . . . . . Miscellaneous . | . . . . . Route ------- -11/Scrapyard -10/Materials (discovered 5 exits: [*Mat x3] / *Min x2) -10/Mines (discovered 3 exits: [*Mat x2] / *Exi) -10/Exiles -9/Mines (discovered 1 exit: [*Mat]) History --------- Turn | Location | Event 8 | -11/Scrapyard | Discovered new exit (range 15) 255 | -11/Scrapyard | Entered Materials 313 | -10/Materials | Build established: Mutant 466 | -10/Materials | Discovered new exit (range 6) 775 | -10/Materials | Discovered new exit (range 8) 1037 | -10/Materials | Discovered new exit (range 8) 1150 | -10/Materials | Discovered new exit (range 14) 1232 | -10/Materials | Discovered new exit (range 12) 1284 | -10/Materials | Identified exit to Mines 1897 | -10/Materials | Entered Mines 2032 | -10/Mines | Discovered new exit (range 11) 2053 | -10/Mines | Assisted by bots powering up and referring to "LRC-V3" 2056 | -10/Mines | Learned location of 2 exits from Materials 2219 | -10/Mines | Learned location of Recycling (-8) 2827 | -10/Mines | Discovered new exit (range 5) 3159 | -10/Mines | Learned location of Storage (-8) 3287 | -10/Mines | Deemed a non-threat by the Exiles lab entrance 3287 | -10/Mines | Discovered new exit (range 5) 3294 | -10/Mines | Entered Exiles 3347 | -10/Exiles | Met 8R-AWN 3375 | -10/Exiles | Met EX-HEX 3453 | -10/Exiles | Met EX-DEC 3461 | -10/Exiles | Learned location of Zion (-6) 3525 | -10/Exiles | Discovered new exit (range 12) 3544 | -10/Exiles | Entered Mines 3562 | -9/Mines | Core integrity fell below 50% 3564 | -9/Mines | Core integrity fell below 20% 3587 | -9/Mines | Lost 4 parts (1p1u2w) 3654 | -9/Mines | Discovered new exit (range 7) 3690 | -9/Mines | Assembled infested the area 3714 | -9/Mines | Released all parts (6) 3716 | -9/Mines | Destroyed by as-19531 with Assembled Heavy Rifle Last Messages --------------- (Burn). 03707_ D-53 Grenadier overheating. 03708_ D-53 Grenadier heat damages Lgt. Deuterium Engine. 03708_ D-53 Grenadier overheating. 03710_ The unstable cave ceiling collapses. 03710_ D-53 Grenadier critical meltdown. 03711_ Aluminum Leg destroyed. 03712_ Destroyed Asb. F-torch. 03712_ as-54326 destroyed. 03712_ as-00018 destroyed. 03713_ Knocked back. 03714_ Released Mni. Grenade Launcher. 03714_ Released Maul. 03714_ Released Aluminum Leg. 03714_ Released Lgt. Ion Engine. 03714_ Released Lrg. Storage Unit. 03714_ Released Shield Generator. 03716_ Rigged Nuclear Core explodes. 03716_ as-67581 destroyed. Map ----- +----------------------------------------------------+ | ???????????????????????????????? | | ???????????????????????????????? | | ???????????????????????????????? | | ???????????????????????????????? | | ???????????????????????????????? | | ???????????????????????????????? | | ??????????? ???????????????????? | | ????????? ??????????????????? | | ???????? ?????????????????? | | ???????? % ?????????????????? | | ???????? ?????????????????? | | ????????# % ?????????????????? | | ???????## a####??????????????? | | ???????# #??????????????? | | ???????# aa #??????????????? | | ??????## a ###????????????? | | ??????# % ##???????????? | | ??????# #####???????? | | ??????? %a % ????????? | | ????????# a ???????????? | | ????????# = #?????????????? | | ??????##;; !%!* #?????????????? | | ??????# % ! #?????????????? | | ??????#=* = #?????????????? | | ??????# ;!%*! ##?????????????? | | ??????#@# / ####??????????????? | | ???#### ######?????????????????? | | ??## ##????????????????? | | ??# #????????????????? | | ??# #????????????????? | | ?## #????????????????? | | ?# ##????????????????? | | ?# #?????????????????? | | ?## < ##?????????????????? | | ??## ##??????????????????? | | ???# # #???????????????????? | | ???## ## #???????????????????? | | ????###?# #???????????????????? | | ?????#### #???????????????????? | | ?????# #???????????????????? | | ?????# #####???????????????????? | | ?????# #????????? ##??????????? | | ?????# #?###### #??????? | | ????## #?# ! #?????? | | ???## ### ## #?????? | | ???# ## ##??????###????????? | | ???# ##????????????????? | | ???# #????????????????? | | ???# #????????????????? | | ???# ##????????????????? | +----------------------------------------------------+ Best States ------------- Heat Dissipation 25 Energy Generation 14 Energy Capacity 250 Matter Stores 300 Matter Capacity 300 Sight Range 16 Terrain Scan Density 10 Armor Coverage 225 Evasion (%) 40 Recoil Reduction 2 Item Schematics ----------------- None Robot Schematics ------------------ None Fabricated ------------ Nothing Repaired ---------- Nothing Studied --------- None Alien Tech Used ----------------- None Achievements -------------- None Challenges ------------ None Game ------ Seed LayeredNavigationProtection Manual? 0 Play Time 00:12:53 Cumulative 263.1 hours Start 2026.01.28 @ 16:39:47 End 2026.01.28 @ 16:51:07 Sessions 1 Manual Loads 0 Difficulty Rogue Special Mode None Game No. 256 Rogue 256 Adventurer 0 Explorer 0 Win Type - Total 13 Types 9/1/2/0/0/0/0/0/0/1 Lore% 88 Gallery% 79 Achievement% 63 Wizard Run 0 Options --------- Layout 1 ASCII 0 Keyboard 1 Movement Arrows Keybinds 0 Fullscreen 1 Font 24/Smallcaps Map View 50x40 Zoom Use 0% Tactical HUD 1 Map Filters NONE Filters NONE Steam 1 RUN: 01c2efe3-31ff-4813-a1f7-ce3bd453cb52